bitfinex-derivatives/quotes_ETHF0:USTF0_20220108
["timestamp","ask_amount","ask_price","bid_price","bid_amount"]
[1641644700111,7.336214,3213.9,3213.2,1.31526254]
[1641644700309,1.37996128,3213.8,3213.3,0.264788]
[1641644700713,2.00479,3213.4,3213.3,0.264788]
[1641644701711,2.00479,3213.4,3213.3,0.76123101]
[1641644701914,2.00479,3213.4,3213.3,0.49644301]
[1641644702713,2.799554,3213.4,3212.9,0.11]
[1641644703112,1.30457576,3213.3,3212.9,0.11]
[1641644703513,2.158767,3213.4,3212.9,0.11]
[1641644703714,2.00479,3213.4,3212.9,0.11]
[1641644703913,2.00479,3213.4,3213.0,0.264788]
[1641644704115,6.158767,3213.4,3213.0,0.49647522]
[1641644704513,2.00479,3213.4,3213.1,0.264788]
[1641644704715,2.00479,3213.4,3213.1,0.902888]
[1641644706319,3.05652925,3213.2,3213.1,0.6381]
[1641644706619,3.05652925,3213.2,3212.9,0.11]
[1641644706818,0.153977,3213.1,3212.9,0.11]
[1641644707218,1.03090112,3213.3,3212.9,0.11]
[1641644708021,0.153977,3213.2,3212.9,0.11]
[1641644708724,2.00479,3213.0,3212.9,0.11]
[1641644708922,2.158767,3213.0,3212.9,0.11]
[1641644711125,2.00479,3213.0,3212.9,0.11]
[1641644711727,6.00479,3213.0,3212.9,0.11]
[1641644711927,8.197483,3213.0,3212.9,0.11]
[1641644712227,8.35146,3213.0,3212.9,0.11]
[1641644712428,13.331307,3213.0,3212.9,0.11]
[1641644713330,14.4557344,3213.0,3212.9,0.11]
[1641644714130,27.8057344,3213.0,3212.9,0.11]
[1641644714332,14.4557344,3213.0,3212.9,0.11]
[1641644714931,27.8057344,3213.0,3212.9,0.11]
[1641644715132,14.4557344,3213.0,3212.9,0.11]
[1641644717034,14.3017574,3213.0,3212.9,0.11]
[1641644717836,27.8057344,3213.0,3212.9,0.11]
[1641644721140,28.4832344,3213.0,3212.9,0.11]
[1641644722541,15.1332344,3213.0,3212.9,0.11]
[1641644723842,16.68987511,3213.0,3212.9,0.11]
[1641644724043,14.4557344,3213.0,3212.9,0.11]
[1641644727446,10.4557344,3213.0,3212.9,0.11]
[1641644727647,10.3017574,3213.0,3212.9,0.11]
[1641644727854,2.00479,3213.4,3212.9,0.11]
[1641644728048,2.00479,3213.4,3213.0,0.264788]
[1641644728249,2.196088,3213.3,3213.0,0.264788]
[1641644730653,2.00479,3213.8,3213.1,1.5]
[1641644730853,2.00479,3213.8,3213.1,2.3078]
[1641644731055,2.00479,3213.8,3213.2,0.264788]
[1641644732254,2.645577,3213.8,3213.2,0.264788]
[1641644732555,2.00479,3213.8,3213.2,0.264788]
[1641644733156,2.00479,3213.8,3213.2,1.764788]
[1641644733355,2.00479,3213.8,3213.2,0.264788]
[1641644736559,2.645577,3213.8,3213.2,0.264788]
[1641644738361,2.00479,3213.8,3213.2,0.264788]
[1641644739865,2.00479,3213.8,3213.2,1.764788]
[1641644740163,1.55562124,3215.1,3213.6,1.5]
[1641644740364,1.55562124,3215.1,3214.0,1.5]
[1641644740564,1.55562124,3215.1,3214.0,2.3672]
[1641644740765,6.27998897,3215.0,3214.0,0.8672]
[1641644740964,2.00479,3214.8,3214.1,2.00479]
[1641644741164,0.794764,3214.7,3214.2,0.264788]
[1641644741363,0.640787,3214.7,3214.2,0.264788]
[1641644742867,0.640787,3214.7,3214.6,2.00479]
[1641644743268,0.77998897,3215.3,3214.6,3.043678]
[1641644743466,0.640787,3215.2,3214.6,3.043678]
[1641644744466,0.77998897,3215.4,3214.6,3.043678]
[1641644744866,0.77998897,3215.4,3214.6,5.048468]
[1641644745468,0.77998897,3215.4,3214.6,6.548468]
[1641644745667,2.00479,3215.5,3214.8,1.5]
[1641644745869,2.00479,3215.5,3214.9,0.264788]
[1641644746969,2.645577,3215.5,3214.9,0.264788]
[1641644747169,2.00479,3215.5,3214.9,0.264788]
[1641644748471,6.00479,3215.5,3214.9,0.264788]
[1641644749068,2.00479,3215.5,3214.9,0.264788]
[1641644749267,2.645577,3215.5,3214.9,0.264788]
[1641644749468,6.645577,3215.5,3214.9,0.264788]
[1641644749869,6.799554,3215.5,3214.9,0.264788]
[1641644750669,6.00479,3215.5,3215.0,1.5]
[1641644750868,0.77998897,3215.6,3215.4,2.00479]
[1641644751070,0.77998897,3215.5,3215.4,2.88829]
[1641644751271,0.77598897,3215.5,3215.4,3.153078]
[1641644752368,1.05131261,3215.8,3215.4,3.153078]
[1641644752771,1.69209961,3215.8,3215.4,3.153078]
[1641644752971,4.0,3215.7,3215.4,3.153078]
[1641644754372,4.0,3215.7,3215.4,2.88829]
[1641644754571,4.0,3215.7,3215.4,2.00479]
[1641644754772,4.153977,3215.7,3215.4,2.00479]
[1641644754973,3.62431808,3215.6,3215.4,2.00479]
[1641644755375,0.153977,3215.5,3215.4,2.00479]
[1641644755576,13.503977,3215.5,3214.8,2.00479]
[1641644755778,4.0,3215.0,3214.8,2.00479]
[1641644755975,0.640787,3214.9,3214.8,2.00479]
[1641644756575,0.794764,3214.9,3214.8,2.00479]
[1641644756877,0.794764,3214.9,3214.3,2.00479]
[1641644757075,0.794764,3214.9,3214.4,0.264788]
[1641644757276,0.153977,3214.9,3214.4,0.264788]
[1641644757976,0.640787,3214.8,3214.4,0.264788]
[1641644760586,4.0,3214.9,3214.4,0.264788]
[1641644760789,1.52839695,3215.0,3214.4,0.264788]
[1641644760990,2.00479,3215.2,3214.4,0.264788]
[1641644763089,0.640787,3215.1,3214.4,0.264788]
[1641644764994,0.640787,3215.1,3214.7,2.00479]
[1641644765392,5.10472495,3215.5,3214.8,0.264788]
[1641644765592,0.640787,3215.4,3214.8,0.264788]
[1641644765892,2.811775,3215.4,3214.8,0.264788]
[1641644766792,1.05131261,3215.7,3215.3,1.5]
[1641644766993,1.05131261,3215.7,3215.6,4.00958]
[1641644767395,1.05131261,3215.9,3215.6,4.00958]
[1641644767593,1.05131261,3215.9,3215.6,4.274368]
[1641644769296,1.05131261,3216.6,3215.6,4.274368]
[1641644769894,2.160354,3216.5,3215.6,4.274368]
[1641644770995,2.160354,3216.5,3216.1,2.00479]
[1641644771196,4.0,3216.3,3216.1,2.00479]
[1641644771395,4.6835,3216.3,3216.1,2.00479]
[1641644771598,0.153977,3216.2,3215.6,2.269578]
[1641644771796,0.153977,3216.2,3215.6,2.00479]
[1641644771998,5.128791,3216.2,3215.6,2.00479]
[1641644772999,4.0,3215.8,3215.6,2.00479]
[1641644773201,4.153977,3215.8,3215.6,2.00479]
[1641644773501,0.153977,3215.8,3215.6,2.00479]
[1641644773902,1.45140005,3216.0,3215.6,2.00479]
[1641644774105,1.45140005,3216.0,3215.6,2.269578]
[1641644774705,5.45140005,3216.0,3215.6,2.269578]
[1641644775105,1.45140005,3216.0,3215.6,2.269578]
[1641644775707,0.78460464,3216.2,3215.8,1.5]
[1641644775907,0.78460464,3216.4,3215.9,0.264788]
[1641644777006,0.78460464,3216.4,3216.0,2.00479]
[1641644777206,2.89939464,3216.8,3216.1,0.264788]
[1641644777606,2.171756,3216.7,3216.1,0.264788]
[1641644778007,2.89939464,3216.8,3216.1,0.264788]
[1641644778609,2.11479,3216.8,3216.1,0.264788]
[1641644779309,0.794764,3216.7,3216.1,0.264788]
[1641644779709,0.153977,3216.7,3216.1,0.264788]
[1641644779909,2.71529,3216.8,3216.1,0.264788]
[1641644780111,0.153977,3216.7,3216.1,0.264788]
[1641644781511,2.11479,3216.8,3216.1,0.264788]
[1641644781713,2.11479,3216.8,3216.1,0.875988]
[1641644782411,0.153977,3216.7,3216.1,0.875988]
[1641644782611,0.153977,3216.7,3216.1,0.264788]
[1641644784613,2.11479,3216.8,3216.1,0.264788]
[1641644789025,2.268767,3216.8,3216.1,0.264788]
[1641644789824,6.909554,3216.8,3216.1,0.264788]
[1641644791025,7.69415864,3216.8,3216.1,0.264788]
[1641644791523,7.05337164,3216.8,3216.1,0.264788]
[1641644792726,6.268767,3216.8,3216.1,0.264788]
[1641644794026,0.640787,3216.7,3216.0,2.00479]
[1641644794426,0.794764,3216.7,3216.0,2.00479]
[1641644795228,1.57936864,3216.7,3216.0,2.00479]
[1641644798434,0.78460464,3216.5,3216.0,2.00479]
[1641644798834,0.153977,3216.4,3216.0,2.00479]
[1641644800644,0.93858164,3216.4,3216.0,2.00479]
[1641644802543,0.78460464,3216.3,3216.0,2.00479]
[1641644803846,0.93858164,3216.4,3216.0,2.00479]
[1641644804145,0.93858164,3216.4,3216.0,2.269578]
[1641644804746,0.78460464,3216.4,3216.0,2.269578]
[1641644805347,0.78460464,3216.4,3216.3,3.50479]
[1641644805646,1.05131261,3216.6,3216.3,3.769578]
[1641644805847,0.42336062,3216.7,3216.3,3.769578]
[1641644806751,0.11,3216.8,3216.3,3.769578]
[1641644807753,0.11,3216.8,3216.3,2.269578]
[1641644807955,0.11,3216.8,3216.3,3.769578]
[1641644810161,0.11,3216.8,3216.3,2.269578]
[1641644810362,0.11,3216.8,3216.3,3.769578]
[1641644813264,1.5768627,3217.7,3216.3,3.769578]
[1641644813464,1.5768627,3217.7,3217.6,4.00958]
[1641644813664,1.5768627,3217.7,3217.6,4.857168]
[1641644814065,1.5768627,3217.7,3217.6,6.357168]
[1641644814265,2.61922273,3218.1,3217.6,6.357168]
[1641644814465,2.61922273,3218.1,3217.8,1.5]
[1641644814866,2.2352298,3218.0,3217.9,0.264788]
[1641644815766,2.2352298,3218.0,3217.6,4.00958]
[1641644816166,2.16142042,3218.0,3217.6,4.00958]
[1641644816366,0.153977,3217.9,3217.6,4.00958]
[1641644817967,1.04911642,3217.8,3217.6,4.00958]
[1641644818167,0.153977,3217.7,3217.6,4.00958]
[1641644818767,0.153977,3217.7,3216.7,16.1639]
[1641644818967,1.20309342,3217.7,3216.7,16.1639]
[1641644819168,4.0,3217.6,3216.7,16.1639]
[1641644819368,4.0,3217.6,3216.5,17.0769]
[1641644819369,0.83166001,3217.5,3216.5,17.0769]
[1641644819571,0.83166001,3217.5,3217.1,2.00479]
[1641644819769,1.62642401,3217.5,3217.1,2.00479]
[1641644820671,2.67554043,3217.5,3217.1,2.00479]
[1641644821673,0.78689862,3217.3,3217.1,2.00479]
[1641644822072,0.153977,3217.2,3217.1,2.00479]
[1641644822273,1.653977,3217.2,3216.7,2.00479]
[1641644822474,4.0,3217.0,3216.7,2.00479]
[1641644822774,0.153977,3216.9,3216.7,2.00479]
[1641644822972,0.640787,3216.8,3216.7,2.00479]
[1641644823272,1.42421631,3216.8,3216.7,2.00479]
[1641644825976,1.42421631,3216.8,3216.3,2.00479]
[1641644826173,1.42421631,3216.8,3216.3,2.269578]
[1641644826375,2.21052895,3216.8,3216.3,2.269578]
[1641644826574,1.56974195,3216.8,3216.3,2.269578]
[1641644827378,0.78631264,3216.7,3216.3,2.269578]
[1641644827680,0.94028964,3216.7,3216.3,2.269578]
[1641644828080,0.94028964,3216.7,3216.3,2.00479]
[1641644829279,4.0,3216.5,3216.3,2.00479]
[1641644829580,0.153977,3216.4,3216.3,2.00479]
[1641644829783,1.653977,3216.4,3216.3,2.00479]
[1641644829981,1.653977,3216.4,3215.9,0.78870715]
[1641644830180,5.5,3216.0,3215.9,0.78870715]
[1641644830381,7.222164,3216.0,3215.4,1.31526254]
[1641644830582,12.197365,3216.0,3215.6,0.7911778]
[1641644830884,1.55535509,3215.7,3215.1,1.31526254]
[1641644831080,1.5,3215.2,3214.9,1.58020406]
[1641644831280,3.71008494,3215.2,3214.9,1.58020406]
[1641644831482,0.6545,3215.2,3214.9,1.58020406]
[1641644831682,1.70959582,3215.1,3214.9,1.58020406]
[1641644831880,1.70959582,3215.1,3214.6,1.97525508]
[1641644831881,1.5,3215.0,3214.6,1.97525508]
[1641644832080,1.5,3214.7,3214.6,1.97525508]
[1641644832281,1.5,3214.7,3214.4,2.59878619]
[1641644832482,2.140787,3214.7,3214.4,0.66173461]
[1641644832681,1.22418047,3214.6,3214.4,0.66173461]
[1641644832880,6.20154847,3214.6,3214.4,0.66173461]
[1641644833981,6.20154847,3214.6,3213.7,4.60357619]
[1641644834182,5.5,3214.3,3213.7,2.00479]
[1641644834383,8.153977,3214.2,3213.2,4.4974611]
[1641644834589,3.05633545,3213.9,3213.2,4.4974611]
[1641644834786,4.0,3213.6,3213.2,4.4974611]
[1641644834984,4.6658,3213.6,3213.2,4.4974611]
[1641644835184,4.979149,3213.5,3213.2,4.4974611]
[1641644835383,0.153977,3213.4,3213.2,4.4974611]
[1641644835585,3.11804505,3213.4,3213.2,0.66173461]
[1641644837387,3.11804505,3213.4,3213.2,1.15823158]
[1641644837588,3.11804505,3213.4,3213.2,0.49649697]
[1641644837986,2.96406805,3213.4,3213.3,0.264788]
[1641644838390,32.2416,3214.4,3213.3,1.117988]
[1641644838587,1.5,3215.0,3213.3,1.117988]
[1641644838788,3.05390642,3214.7,3213.3,1.117988]
[1641644838990,2.176295,3214.3,3213.3,2.617988]
[1641644839187,7.165214,3214.6,3213.3,2.617988]
[1641644839387,4.97822,3214.6,3213.3,2.617988]
[1641644839588,3.05390642,3214.7,3214.1,2.00479]
[1641644839789,2.192127,3214.5,3214.1,2.00479]
[1641644839988,2.824501,3214.6,3214.1,2.00479]
[1641644840190,2.203805,3214.5,3214.1,2.269578]
[1641644840591,0.153977,3214.4,3214.1,2.00479]
[1641644840790,4.640787,3214.6,3214.1,2.00479]
[1641644841393,0.640787,3214.6,3214.2,0.264788]
[1641644841598,17.61694702,3215.4,3214.5,2.00479]
[1641644841793,3.05390642,3215.6,3214.5,2.00479]
[1641644842393,1.04911642,3215.5,3214.5,2.00479]
[1641644842995,1.04911642,3215.5,3214.5,3.50479]
[1641644843597,1.04911642,3215.5,3215.1,2.00479]
[1641644843796,0.640787,3215.4,3215.1,2.95789]
[1641644843998,2.00479,3215.6,3215.1,2.95789]
[1641644844296,2.00479,3215.6,3215.2,0.264788]
[1641644852408,2.00479,3215.6,3215.2,1.030988]
[1641644852807,0.78176713,3216.3,3215.2,1.030988]
[1641644853008,0.78176713,3216.3,3215.4,1.5]
[1641644853210,0.78176713,3216.3,3215.3,1.55461035]
[1641644853808,0.78176713,3216.3,3216.0,2.00479]
[1641644854813,0.794764,3216.4,3216.0,2.00479]
[1641644856911,0.794764,3216.4,3216.1,0.264788]
[1641644858011,0.794764,3216.4,3216.0,2.00479]
[1641644859013,1.5,3216.1,3215.1,2.00479]
[1641644859216,1.5,3215.5,3215.1,2.00479]
[1641644859514,0.794764,3215.4,3215.1,2.00479]
[1641644859713,0.794764,3215.4,3213.9,32.8894]
[1641644859714,1.685264,3215.4,3214.7,2.00479]
[1641644860313,0.95049039,3215.3,3214.7,2.00479]
[1641644861014,0.153977,3215.2,3214.7,2.00479]
[1641644861215,0.153977,3215.2,3214.8,0.264788]
[1641644862216,0.153977,3215.2,3214.7,2.00479]
[1641644863317,0.153977,3215.2,3214.7,2.269578]
[1641644863522,3.05585843,3214.8,3213.5,0.07775]
[1641644863717,2.00479,3214.2,3213.5,2.00479]
[1641644863918,4.0,3214.0,3213.1,2.00479]
[1641644864320,2.151098,3213.9,3213.1,2.00479]
[1641644864517,1.1042386,3213.8,3213.1,2.00479]
[1641644865718,3.1090286,3213.8,3213.1,2.00479]
[1641644867721,1.5,3213.6,3213.1,2.00479]
[1641644867921,4.153977,3213.5,3213.1,2.00479]
[1641644868122,0.640787,3213.4,3213.1,2.00479]
[1641644868520,22.85,3213.2,3212.3,1.31448755]
[1641644868722,17.35,3212.4,3212.3,1.31448755]
[1641644868920,1.067777,3212.4,3212.3,1.31248755]
[1641644869121,0.9138,3212.4,3212.2,0.264788]
[1641644869920,2.00479,3212.6,3212.2,0.264788]
[1641644872124,2.00479,3212.9,3212.2,0.264788]
[1641644872322,2.00479,3212.9,3212.2,1.025588]
[1641644873824,2.00479,3212.9,3212.5,1.5]
[1641644874024,2.00479,3212.9,3212.6,0.264788]
[1641644874224,2.00479,3213.5,3212.7,1.5]
[1641644874426,2.00479,3213.5,3212.4,2.00479]
[1641644874625,2.00479,3213.5,3212.7,1.5]
[1641644874825,2.00479,3213.5,3212.8,0.264788]
[1641644875026,2.645577,3213.5,3212.8,0.264788]
[1641644875826,2.00479,3213.5,3212.8,0.264788]
[1641644877730,1.5,3212.9,3212.0,0.07779]
[1641644877930,6.00479,3212.9,3211.9,0.11]
[1641644878130,2.195103,3212.8,3211.9,0.11]
[1641644878331,2.995503,3212.8,3211.9,0.11]
[1641644878733,1.55675703,3212.5,3211.9,0.11]
[1641644879030,1.82154503,3212.5,3211.9,0.11]
[1641644879231,0.640787,3212.4,3211.9,0.11]
[1641644879431,0.264788,3212.3,3211.9,0.11]
[1641644879832,2.00479,3212.1,3211.9,0.11]
[1641644880033,0.264788,3212.0,3211.9,0.11]
[1641644880235,2.00479,3212.1,3211.9,0.11]
[1641644880434,2.00479,3212.1,3211.9,1.0197]
[1641644880635,2.00479,3212.1,3212.0,0.110811]
[1641644881035,18.87,3213.9,3212.0,0.110811]
[1641644881236,3.11399359,3213.3,3212.0,0.110811]
[1641644881636,1.55636936,3213.3,3212.0,0.110811]
[1641644881835,3.56115936,3213.3,3212.2,2.00479]
[1641644882037,0.640787,3212.8,3212.2,2.00479]
[1641644882236,0.640787,3212.8,3212.3,0.110811]
[1641644882835,3.56115936,3213.3,3212.3,0.110811]
[1641644883041,3.56115936,3213.3,3212.7,1.5]
[1641644883042,2.00479,3213.3,3212.7,1.5]
[1641644883235,2.00479,3213.3,3212.8,0.110811]
[1641644884135,2.645577,3213.3,3212.8,0.110811]
[1641644884536,2.00479,3213.3,3212.8,0.110811]
[1641644886841,2.645577,3213.3,3212.8,0.110811]
[1641644887344,2.40473001,3212.9,3212.2,0.07779]
[1641644887540,2.40473001,3212.9,3211.9,1.42245633]
[1641644887541,0.848099,3212.7,3211.9,1.42245633]
[1641644887741,0.264788,3212.8,3211.9,1.42245633]
[1641644887942,2.00479,3212.0,3211.9,1.42245633]
[1641644888341,2.00479,3212.0,3211.9,0.11]
[1641644890149,2.00479,3212.3,3211.9,0.11]
[1641644891154,16.4108,3213.2,3211.9,1.608401]
[1641644891352,16.4108,3213.2,3212.0,1.55610538]
[1641644891552,16.4108,3213.2,3211.9,0.9565]
[1641644891752,0.848099,3213.1,3211.9,0.9565]
[1641644891952,2.00479,3212.9,3212.1,2.00479]
[1641644892355,0.640787,3212.8,3212.1,2.00479]
[1641644892654,2.00479,3212.9,3212.1,2.00479]
[1641644894956,2.00479,3213.2,3212.6,0.651901]
[1641644895156,2.00479,3213.2,3212.6,1.398001]
[1641644895556,1.5,3212.7,3212.6,0.6379]
[1641644895756,2.3709,3212.7,3212.6,0.6379]
[1641644895957,4.37569,3212.7,3212.6,0.6379]
[1641644896556,2.87569,3212.7,3212.6,0.6379]
[1641644896758,2.00479,3213.2,3212.6,0.6379]
[1641644897857,1.5,3212.8,3212.5,2.00479]
[1641644898058,3.733265,3213.2,3212.5,2.00479]
[1641644898457,2.82769,3213.2,3212.5,2.78709]
[1641644899059,2.00479,3213.2,3212.5,2.78709]
[1641644900662,0.640787,3213.1,3212.5,2.78709]
[1641644900863,1.5,3212.8,3212.5,2.78709]
[1641644901063,1.5,3212.8,3212.5,2.00479]
[1641644901266,0.640787,3213.1,3212.5,2.00479]
[1641644901465,2.00479,3213.2,3212.5,2.00479]
[1641644903766,2.00479,3213.5,3212.5,2.00479]
[1641644903968,0.02058197,3756.3,3213.4,2.00479]
[1641644903969,2.00479,3214.7,3213.4,2.00479]
[1641644904170,2.00479,3214.7,3213.6,1.55533573]
[1641644904769,1.5,3213.8,3212.5,0.07778]
[1641644904970,2.160623,3214.6,3212.5,1.01876599]
[1641644905372,1.5,3214.3,3213.1,0.78794284]
[1641644905972,2.00479,3213.7,3213.1,0.78794284]
[1641644906571,2.00479,3213.7,3213.1,2.34341163]
[1641644906774,2.00479,3213.7,3213.1,1.55546879]
[1641644907671,2.00479,3214.0,3213.1,1.55546879]
[1641644907874,2.00479,3214.5,3213.8,2.00479]
[1641644908073,2.00479,3214.5,3213.8,2.79289]
[1641644910074,1.5,3214.2,3213.8,2.79289]
[1641644910276,1.5,3213.9,3213.8,2.00479]
[1641644911077,1.5,3214.0,3213.8,2.00479]
[1641644911875,2.00479,3213.9,3212.9,4.00958]
[1641644913980,2.00479,3213.9,3212.9,4.79752284]
[1641644915179,2.00479,3213.9,3213.0,1.27688077]
[1641644916881,2.00479,3213.9,3213.0,2.01838077]
[1641644917380,2.00479,3213.9,3213.1,0.78794284]
[1641644918082,2.00479,3213.9,3213.4,2.00479]
[1641644918683,2.00479,3213.9,3213.4,2.79273284]
[1641644921089,2.00479,3213.9,3213.5,1.27777955]
[1641644922988,2.00479,3213.9,3213.6,0.78794284]
[1641644923989,3.50479,3213.9,3213.7,0.78794284]
[1641644925092,2.00479,3213.9,3213.7,0.78794284]
[1641644925392,2.00479,3213.9,3213.5,1.27777955]
[1641644926197,2.00479,3213.9,3213.6,0.78794284]
[1641644934705,0.640787,3214.4,3213.6,0.78794284]
[1641644934904,0.77902668,3214.6,3213.6,0.78794284]
[1641644935106,0.77902668,3214.6,3214.1,1.55496329]
[1641644935305,0.77902668,3214.6,3214.1,2.49636329]
[1641644935509,0.77902668,3214.6,3214.2,1.55493186]
[1641644935908,0.77902668,3214.6,3214.2,2.47813541]
[1641644936110,0.77902668,3214.6,3214.5,4.00958]
[1641644937511,1.03986534,3214.8,3214.5,4.00958]
[1641644937713,0.77902668,3215.4,3214.5,4.00958]
[1641644938112,0.77902668,3215.4,3214.9,2.00479]
[1641644939320,2.78381668,3215.6,3214.9,2.00479]
[1641644940013,0.640787,3215.5,3214.9,2.00479]
[1641644940215,2.78381668,3215.6,3214.9,4.00958]
[1641644940813,2.00479,3215.6,3214.9,4.00958]
[1641644942019,0.640787,3215.5,3214.9,4.00958]
[1641644942215,1.484487,3215.5,3214.9,2.00479]
[1641644942616,1.82002456,3215.4,3214.9,2.00479]
[1641644942817,1.82002456,3215.4,3214.6,0.78794284]
[1641644944016,2.59905124,3215.4,3214.3,0.78794284]
[1641644944217,2.00479,3215.2,3214.5,2.00479]
[1641644944719,0.264788,3215.1,3214.5,2.00479]
[1641644949018,1.5,3214.6,3214.5,2.00479]
[1641644953124,2.557088,3214.6,3214.1,0.78794284]
[1641644953327,1.5,3214.2,3214.1,0.78794284]
[1641644953724,1.764788,3214.2,3214.1,0.68354284]
[1641644953925,1.764788,3214.2,3213.5,1.31245633]
[1641644954125,1.5,3213.6,3213.5,1.31245633]
[1641644954325,2.3556,3213.6,3213.5,1.31245633]
[1641644955526,2.3556,3213.6,3213.3,1.57738505]
[1641644955728,0.8556,3213.6,3213.1,0.49650009]
[1641644955928,1.5,3213.2,3213.1,0.49650009]
[1641644956832,0.264788,3213.5,3213.0,0.49650009]
[1641644957029,2.3556,3213.6,3213.0,0.49650009]
[1641644957430,2.620388,3213.6,3213.0,0.49650009]
[1641644958030,2.620388,3213.6,3213.0,1.80895642]
[1641644959833,1.5,3213.6,3213.1,1.31245633]
[1641644960236,2.140787,3213.9,3213.1,1.31245633]
[1641644960436,0.264788,3213.8,3213.1,1.31245633]
[1641644960836,0.264788,3213.8,3213.2,1.31245633]
[1641644963136,1.5,3213.3,3213.2,1.31245633]
[1641644963434,1.5,3213.7,3213.2,1.31245633]
[1641644963934,2.140787,3213.9,3213.2,1.31245633]
[1641644964336,1.5,3213.5,3213.2,1.31245633]
[1641644964536,1.5,3213.5,3213.1,1.31245633]
[1641644964936,2.00479,3214.1,3213.1,1.31245633]
[1641644965336,1.5,3213.5,3213.1,1.31245633]
[1641644965537,1.5,3213.5,3213.4,1.31245633]
[1641644966838,1.5,3213.8,3213.4,1.31245633]
[1641644967138,1.764788,3213.8,3213.4,1.31245633]
[1641644967438,1.5,3213.6,3213.4,1.31245633]
[1641644967838,1.5,3213.6,3213.2,1.31245633]
[1641644968340,0.264788,3213.8,3213.2,1.31245633]
[1641644968740,1.5,3213.7,3213.2,1.31245633]
[1641644968938,0.264788,3213.8,3213.3,1.31245633]
[1641644969137,0.905575,3213.8,3213.3,1.31245633]
[1641644969739,1.5,3213.4,3213.3,1.31245633]
[1641644969940,3.9036,3213.4,3213.3,1.31245633]
[1641644970140,3.9036,3213.4,3213.0,0.49650009]
[1641644970141,5.45979014,3213.4,3213.0,0.49650009]
[1641644970339,5.00479,3213.1,3213.0,0.49650009]
[1641644970542,3.50479,3213.1,3213.0,0.04820009]
[1641644970740,3.50479,3213.1,3212.8,1.97173132]
[1641644970939,0.264788,3213.0,3212.8,1.97173132]
[1641644971139,1.5,3212.9,3212.6,3.29098577]
[1641644971342,1.5,3212.7,3212.4,2.00479]
[1641644971740,0.7044,3212.7,3212.4,2.00479]
[1641644971941,1.5,3212.5,3212.4,2.00479]
[1641644972342,3.50479,3213.1,3212.4,2.00479]
[1641644972643,2.00479,3213.1,3212.4,2.00479]
[1641644973142,1.5,3213.4,3212.4,2.00479]
[1641644974343,1.5,3213.4,3213.2,2.00479]
[1641644974545,2.28429339,3213.9,3213.2,2.78309]
[1641644975243,0.78429339,3213.9,3213.2,2.78309]
[1641644976245,3.50479,3214.0,3213.7,0.7919753]
[1641644976645,2.78908339,3214.3,3213.7,0.7919753]
[1641644976646,0.78429339,3214.3,3213.7,0.7919753]
[1641644976849,1.5,3214.2,3213.7,0.7919753]
[1641644977046,2.140787,3214.2,3213.7,0.7919753]
[1641644977247,2.140787,3214.2,3214.0,0.7919753]
[1641644977446,2.140787,3214.2,3214.0,1.7189753]
[1641644977647,1.5,3214.2,3214.0,1.7189753]
[1641644978049,16.47859339,3214.6,3214.0,1.7189753]
[1641644978251,0.78429339,3214.6,3214.0,1.7189753]
[1641644978550,1.5,3214.2,3214.0,1.7189753]
[1641644979348,1.5,3214.2,3214.0,0.927]
[1641644980349,1.5,3214.2,3213.9,5.24202224]
[1641644981350,1.5,3214.2,3213.9,6.56157147]
[1641644981554,2.78908339,3215.0,3213.9,6.56157147]
[1641644981759,0.78429339,3215.0,3214.9,1.3985]
[1641644981955,0.78429339,3215.0,3214.9,0.6087]
[1641644982455,1.68065234,3215.2,3214.9,4.61828]
[1641644982658,1.03986534,3215.2,3215.0,0.95389578]
[1641644984157,0.1015,3215.4,3215.0,0.95389578]
[1641644985156,0.1015,3215.8,3215.0,0.95389578]
[1641644985355,0.1015,3215.8,3215.0,1.53869578]
[1641644985557,3.15465534,3215.9,3215.0,1.53869578]
[1641644985756,0.1015,3215.7,3215.0,1.53869578]
[1641644986857,2.11479,3215.9,3215.0,1.53869578]
[1641644987057,0.1015,3215.3,3215.0,0.5848]
[1641644987257,0.1015,3215.3,3214.9,4.00958]
[1641644988358,2.11479,3215.9,3214.9,4.00958]
[1641644988660,0.1015,3215.7,3214.9,4.00958]
[1641644988858,1.03986534,3216.2,3214.9,4.00958]
[1641644988859,1.03986534,3216.2,3215.6,2.95264163]
[1641644989058,1.57100308,3216.7,3216.2,0.00193466]
[1641644989458,0.1015,3216.3,3216.2,0.00193466]
[1641644989861,0.366288,3216.3,3216.2,0.00193466]
[1641644993865,0.264788,3216.3,3216.2,0.00193466]
[1641644994065,0.1015,3216.6,3216.2,0.00193466]
[1641644994265,0.366288,3216.6,3216.2,0.00193466]
[1641644995072,0.1015,3216.3,3216.2,0.00193466]
[1641644995875,2.11479,3216.8,3216.2,0.00193466]
[1641644996274,0.640787,3216.7,3216.2,0.00193466]
[1641644996476,2.379578,3216.8,3216.2,0.00193466]
[1641644997777,0.1015,3216.3,3216.2,0.00193466]
[1641645000885,2.11479,3216.8,3216.2,0.00193466]
[1641645001085,0.11,3216.8,3216.2,0.00193466]
[1641645001286,0.11,3216.8,3216.3,1.47621]
[1641645001686,5.374,3218.5,3216.4,1.5]
[1641645001887,20.27247918,3218.6,3216.7,1.55361768]
[1641645002086,1.5,3218.5,3216.7,2.28901768]
[1641645002586,2.00479,3218.2,3217.4,2.00479]
[1641645002787,2.00479,3218.2,3217.4,2.73389]
[1641645002987,1.04491263,3217.9,3217.4,2.73389]
[1641645004187,0.10806534,3217.8,3217.4,2.73389]
[1641645006589,0.10806534,3217.8,3217.4,2.00479]
[1641645006988,0.264788,3217.7,3217.4,2.00479]
[1641645007188,2.535488,3217.7,3217.4,2.00479]